lending/lending_fUSD_20241228
["ID","MTS","AMOUNT","RATE_DAILY","PERIOD"]
[346896713,1735347044635,-151.0,0.00012516,2]
[346896715,1735347044644,-151.0,0.00012516,2]
[346896717,1735347044653,-317.469188,0.00012516,2]
[346896719,1735347044663,-151.0,0.00012516,2]
[346896721,1735347044672,-151.0,0.00012516,2]
[346896723,1735347044681,-162.432014,0.00012516,2]
[346896725,1735347044690,-151.0,0.00012516,2]
[346896727,1735347044699,-170.200424,0.00012516,2]
[346896729,1735347044708,-151.0,0.00012516,2]
[346896731,1735347044718,-151.0,0.00012516,2]
[346896733,1735347044727,-204.884805,0.00012516,2]
[346896735,1735347044736,-151.0,0.00012516,2]
[346896737,1735347044745,-204.884805,0.00012516,2]
[346896739,1735347044755,-151.0,0.00012516,2]
[346896741,1735347044764,-151.0,0.00012516,2]
[346896743,1735347044774,-151.0,0.00012516,2]
[346896745,1735347044783,-151.0,0.00012516,2]
[346896747,1735347044792,-151.0,0.00012516,2]
[346896749,1735347044801,-346.970112,0.00012516,2]
[346896751,1735347044811,-346.970112,0.00012516,2]
[346896753,1735347044820,-50619.36132657,0.0001252,2]
[346896755,1735347044828,-500.0,0.00012527,2]
[346896756,1735347044837,-732.41,0.00012527,2]
[346896757,1735347044846,-500.0,0.00012527,2]
[346896758,1735347044855,-500.0,0.00012527,2]
[346896759,1735347044865,-579.57,0.00012527,2]
[346896760,1735347044873,-1107.14,0.00012527,2]
[346896761,1735347044882,-500.0,0.00012527,2]
[346896762,1735347044892,-624.77,0.00012527,2]
[346896763,1735347044901,-638.35,0.00012527,2]
[346896764,1735347044910,-819.27,0.00012527,2]
[346896765,1735347044919,-500.0,0.00012527,2]
[346896767,1735347044928,-1210.49,0.00012527,2]
[346896769,1735347044937,-500.0,0.00012527,2]
[346896771,1735347044947,-561.12,0.00012547,2]
[346896773,1735347044956,-500.0,0.00012547,2]
[346896775,1735347044966,-692.0,0.00012548,2]
[346896777,1735347044975,-504.61,0.00012548,2]
[346896779,1735347044984,-755.97,0.00012548,2]
[346896781,1735347044994,-500.0,0.00012548,2]
[346896783,1735347045003,-500.0,0.00012548,2]
[346896785,1735347045013,-500.0,0.00012548,2]
[346896787,1735347045022,-713.95,0.00012548,2]
[346896789,1735347045031,-500.0,0.00012548,2]
[346896791,1735347045040,-643.9,0.00012548,2]
[346896793,1735347045049,-500.0,0.00012548,2]
[346896795,1735347045058,-500.0,0.00012548,2]
[346896797,1735347045067,-500.0,0.00012548,2]
[346896799,1735347045076,-500.0,0.00012548,2]
[346896801,1735347045085,-500.0,0.00012548,2]
[346896803,1735347045094,-3182.96,0.00012548,2]
[346896805,1735347045103,-500.0,0.00012548,2]
[346896807,1735347045113,-491.19243189,0.00012549,2]
[346896809,1735347045122,-500.0,0.00012549,2]
[346896811,1735347045131,-500.0,0.00012549,2]
[346896813,1735347045140,-500.0,0.00012549,2]
[346896815,1735347045149,-500.0,0.00012549,2]
[346896817,1735347045159,-500.0,0.00012549,2]
[346896819,1735347045167,-320.09289539,0.00012549,2]
[346896821,1735347045177,-500.0,0.00012549,2]
[346896823,1735347045186,-500.0,0.00012549,2]
[346896825,1735347045196,-500.0,0.00012549,2]
[346896826,1735347045205,-500.0,0.00012549,2]
[346896827,1735347045214,-500.0,0.00012549,2]
[346896828,1735347045224,-881.43,0.00012549,2]
[346896829,1735347045233,-500.0,0.00012549,2]
[346896830,1735347045242,-500.0,0.00012549,2]
[346896831,1735347045251,-500.0,0.00012549,2]
[346896832,1735347045260,-500.0,0.00012549,2]
[346896833,1735347045269,-500.0,0.00012549,2]
[346896834,1735347045279,-500.0,0.00012549,2]
[346896835,1735347045288,-500.0,0.00012549,2]
[346896836,1735347045298,-500.0,0.00012549,2]
[346896837,1735347045307,-500.0,0.00012549,2]
[346896838,1735347045316,-500.0,0.00012549,2]
[346896839,1735347045326,-500.0,0.00012549,2]
[346896840,1735347045335,-500.0,0.00012549,2]
[346896841,1735347045346,-500.0,0.00012549,2]
[346896842,1735347045355,-500.0,0.00012549,2]
[346896843,1735347045364,-500.0,0.00012549,2]
[346896844,1735347045374,-500.0,0.00012549,2]
[346896845,1735347045383,-500.0,0.00012549,2]
[346896846,1735347045392,-500.0,0.00012549,2]
[346896847,1735347045402,-500.0,0.00012549,2]
[346896848,1735347045411,-500.0,0.00012549,2]
[346896849,1735347045421,-500.0,0.00012549,2]
[346896850,1735347045432,-1117.71,0.00012549,2]
[346896851,1735347045444,-500.0,0.00012549,2]
[346896852,1735347045453,-552.49060378,0.0001255,2]
[346896853,1735347045462,-500.0,0.0001255,2]
[346896854,1735347045475,-500.0,0.0001255,2]
[346896855,1735347045484,-500.0,0.0001255,2]
[346896856,1735347045493,-759.61,0.0001255,2]
[346896857,1735347045502,-865.25,0.0001255,2]
[346896858,1735347045514,-500.0,0.0001255,2]
[346896859,1735347045523,-1714.96,0.0001255,2]
[346896860,1735347045532,-500.0,0.0001255,2]
[346896861,1735347045542,-500.0,0.0001255,2]
[346896862,1735347045551,-500.0,0.0001255,2]
[346896863,1735347045560,-522.18,0.0001255,2]
[346896864,1735347045569,-500.0,0.0001255,2]
[346896865,1735347045579,-500.0,0.0001255,2]
[346896866,1735347045588,-500.0,0.0001255,2]
[346896867,1735347045597,-500.0,0.0001255,2]
[346896868,1735347045607,-1150.91,0.0001255,2]
[346896869,1735347045616,-500.0,0.0001255,2]
[346896870,1735347045625,-660.54,0.0001255,2]
[346896871,1735347045635,-500.0,0.00012551,2]
[346896872,1735347045643,-788.29,0.00012551,2]
[346896873,1735347045653,-500.0,0.00012551,2]
[346896874,1735347045662,-500.0,0.00012551,2]
[346896875,1735347045671,-500.0,0.00012551,2]
[346896876,1735347045680,-312.59218301,0.00012551,2]
[346896877,1735347045690,-500.0,0.00012551,2]
[346896878,1735347045699,-500.0,0.00012551,2]
[346896879,1735347045710,-500.0,0.00012551,2]
[346896880,1735347045719,-500.0,0.00012551,2]
[346896881,1735347045728,-500.0,0.00012551,2]
[346896882,1735347045739,-3609.33,0.00012551,2]
[346896883,1735347045749,-500.0,0.00012551,2]
[346896884,1735347045758,-500.0,0.00012551,2]
[346896885,1735347045768,-500.0,0.00012551,2]
[346896886,1735347045777,-795.61,0.00012551,2]
[346896887,1735347045786,-951.14,0.00012551,2]
[346896888,1735347045796,-500.0,0.00012551,2]
[346896889,1735347045806,-500.0,0.00012552,2]
[346896891,1735347045816,-500.0,0.00012552,2]
[346896892,1735347045825,-4256.63,0.00012552,2]
[346896893,1735347045835,-4256.63,0.00012552,2]
[346896894,1735347045845,-500.0,0.00012552,2]
[346896895,1735347045854,-500.0,0.00012552,2]
[346896896,1735347045863,-500.0,0.00012552,2]
[346896897,1735347045873,-151.0,0.0001256,2]
[346896898,1735347045882,-177.028534,0.00012564,2]
[346896900,1735347045891,-151.0,0.00012564,2]
[346896902,1735347045900,-272.226905,0.00012564,2]
[346896904,1735347045910,-1402.0,0.00012567,2]
[346896906,1735347045919,-151.0,0.00012567,2]
[346896908,1735347045928,-198.421078,0.00012567,2]
[346896910,1735347045937,-231.55595,0.00012567,2]
[346896912,1735347045946,-231.55595,0.00012567,2]
[346896914,1735347045955,-151.0,0.00012567,2]
[346896916,1735347045965,-151.0,0.00012567,2]
[346896918,1735347045974,-151.0,0.00012567,2]
[346896920,1735347045984,-152.554432,0.00012567,2]
[346896922,1735347045993,-151.0,0.00012567,2]
[346896924,1735347046002,-151.0,0.00012567,2]
[346896926,1735347046011,-151.0,0.00012567,2]
[346896928,1735347046020,-317.469188,0.00012567,2]
[346896930,1735347046030,-151.0,0.00012567,2]
[346896932,1735347046039,-151.0,0.00012567,2]
[346896934,1735347046049,-151.0,0.00012567,2]
[346896936,1735347046058,-151.0,0.00012567,2]
[346896937,1735347046068,-204.884805,0.00012567,2]
[346896939,1735347046077,-291.914075,0.00012567,2]
[346896941,1735347046086,-204.884805,0.00012567,2]
[346896943,1735347046096,-151.0,0.00012567,2]
[346896945,1735347046105,-151.0,0.00012567,2]
[346896947,1735347046114,-151.0,0.00012567,2]
[346896949,1735347046123,-151.0,0.00012567,2]
[346896951,1735347046132,-346.970112,0.00012567,2]
[346896953,1735347046142,-346.970112,0.00012567,2]
[346896955,1735347046151,-151.0,0.00012567,2]
[346896957,1735347046160,-4648.84767,0.00012567,2]
[346896959,1735347046170,-4648.84767,0.00012567,2]
[346896961,1735347046179,-349394.86276623,0.00012567,2]
[346896963,1735347046188,-50619.36132657,0.00012569,2]
[346896965,1735347046198,-284.88,0.00012574,2]
[346896967,1735347046208,-500.0,0.00012575,2]
[346896969,1735347046218,-500.0,0.00012575,2]
[346896971,1735347046228,-500.0,0.00012575,2]
[346896974,1735347046238,-788.77,0.00012575,2]
[346896975,1735347046247,-500.0,0.00012575,2]
[346896976,1735347046257,-500.0,0.00012575,2]
[346896977,1735347046266,-759.04,0.00012575,2]
[346896978,1735347046276,-500.0,0.00012575,2]
[346896979,1735347046285,-500.0,0.00012575,2]
[346896980,1735347046294,-2557.03,0.00012575,2]
[346896981,1735347046304,-500.0,0.00012575,2]
[346896982,1735347046314,-825.996959,0.00012575,2]
[346896983,1735347046323,-500.0,0.00012575,2]
[346897000,1735347046504,-805.909435,0.00012575,2]
[346897002,1735347046515,-1281.16,0.00012575,2]
[346897004,1735347046524,-500.0,0.00012575,2]
[346897006,1735347046533,-500.0,0.00012575,2]
[346897008,1735347046543,-263.14258517,0.00012575,2]
[346897010,1735347046552,-500.0,0.00012575,2]
[346897012,1735347046561,-500.0,0.00012575,2]
[346897014,1735347046571,-500.0,0.00012575,2]
[346897016,1735347046581,-500.0,0.00012575,2]
[346897018,1735347046590,-500.0,0.00012575,2]
[346897020,1735347046599,-684.61,0.00012575,2]
[346897022,1735347046609,-500.0,0.00012575,2]
[346897024,1735347046618,-1927.6,0.00012575,2]
[346897026,1735347046627,-1425.0,0.00012575,2]
[346897028,1735347046637,-416.58985966,0.000126,2]
[346897030,1735347046646,-13666.998,0.000126,2]
[346897032,1735347046656,-6000.0,0.000126,2]
[346897033,1735347046666,-151.0,0.000126,2]
[346897034,1735347046675,-173.730216,0.000126,2]
[346897035,1735347046685,-204.884805,0.000126,2]
[346897036,1735347046695,-204.884805,0.000126,2]
[346897037,1735347046704,-151.0,0.000126,2]
[346897038,1735347046714,-8083.48160661,0.000126,2]
[346897039,1735347046723,-8083.48160651,0.000126,2]
[346897040,1735347046732,-346.970112,0.000126,2]
[346897041,1735347046742,-8083.48160651,0.000126,2]
[346897042,1735347046752,-346.970112,0.000126,2]
[346897043,1735347046761,-8083.48160651,0.000126,2]
[346897044,1735347046770,-8083.48160651,0.000126,2]
[346897045,1735347046781,-8083.48160651,0.000126,2]
[346897046,1735347046790,-8083.48160651,0.000126,2]
[346897047,1735347046800,-8083.48160651,0.000126,2]
[346897048,1735347046810,-8083.48160651,0.000126,2]
[346897049,1735347046820,-8083.48160651,0.000126,2]
[346897050,1735347046832,-8083.48160651,0.000126,2]
[346897051,1735347046842,-8083.48160651,0.000126,2]
[346897052,1735347046852,-8083.48160651,0.000126,2]
[346897053,1735347046862,-8083.48160651,0.000126,2]
[346897054,1735347046872,-8083.48160651,0.000126,2]
[346897055,1735347046882,-61732.05,0.00012603,2]
[346897056,1735347046892,-151.0,0.00012603,2]
[346897057,1735347046902,-151.0,0.00012603,2]
[346897058,1735347046912,-151.0,0.00012603,2]
[346897059,1735347046921,-151.0,0.00012603,2]
[346897060,1735347046931,-151.0,0.00012603,2]
[346897061,1735347046941,-151.0,0.00012603,2]
[346897062,1735347046951,-151.0,0.00012603,2]
[346897063,1735347046960,-175.24905,0.00012603,2]
[346897064,1735347046970,-317.469188,0.00012603,2]
[346897065,1735347046979,-151.0,0.00012603,2]
[346897066,1735347046989,-231.55595,0.00012615,2]
[346897067,1735347046999,-231.55595,0.00012615,2]
[346897068,1735347047009,-50619.36132657,0.00012618,2]
[346897069,1735347047019,-151.0,0.00012625,2]
[346897070,1735347047029,-151.0,0.00012625,2]
[346897071,1735347047038,-260.0,0.0001265,2]
[346897072,1735347047048,-816.96,0.00012666,2]
[346897073,1735347047058,-500.0,0.00012666,2]
[346897074,1735347047067,-500.0,0.00012666,2]
[346897075,1735347047080,-500.0,0.00012666,2]
[346897076,1735347047089,-500.0,0.00012666,2]
[346897077,1735347047099,-500.0,0.00012666,2]
[346897078,1735347047109,-151.0,0.00012667,2]
[346897079,1735347047118,-151.0,0.00012667,2]
[346897080,1735347047127,-151.0,0.00012667,2]
[346897081,1735347047138,-204.884805,0.00012667,2]
[346897082,1735347047147,-204.884805,0.00012667,2]
[346897083,1735347047157,-151.0,0.00012667,2]
[346897084,1735347047166,-399.00747495,0.00012667,2]
[346897085,1735347047180,-151.0,0.00012667,2]
[346897086,1735347047190,-346.970112,0.00012667,2]
[346897087,1735347047199,-346.970112,0.00012667,2]
[346897088,1735347047209,-151.0,0.00012667,2]
[346897089,1735347047219,-4648.84767,0.00012667,2]
[346897090,1735347047228,-4648.84767,0.00012667,2]
[346897091,1735347047237,-50619.36132657,0.00012667,2]
[346897092,1735347047247,-2992.16284884,0.00012667,2]
[346897093,1735347047256,-185.93170517,0.00012667,2]
[346897094,1735347047266,-1388.84793337,0.0001268,3]
[346897095,1735347047275,-416.58985966,0.000127,2]
[346897096,1735347047285,-282.0,0.0001272,2]
[346897097,1735347047294,-323.0,0.0001272,2]
[346897098,1735347047303,-667.54,0.0001272,2]
[346897099,1735347047313,-1082.52,0.0001272,2]
[346897100,1735347047325,-500.0,0.0001272,2]
[346897101,1735347047335,-1490.51,0.0001272,2]
[346897102,1735347047345,-27931.0,0.0001274,2]
[346897103,1735347047355,-500.0,0.0001274,2]
[346897104,1735347047364,-317.469188,0.0001274,2]
[346897105,1735347047374,-151.0,0.0001274,2]
[346897106,1735347047384,-150.0,0.00012753,2]
[346897107,1735347047394,-3680.2220395,0.0001276,7]
[346897108,1735347047404,-187944.8887366,0.00012765,2]
[346897109,1735347047415,-231.55595,0.00012765,2]
[346897110,1735347047425,-231.55595,0.00012765,2]
[346897111,1735347047438,-151.0,0.00012765,2]
[346897112,1735347047448,-151.0,0.00012765,2]
[346897113,1735347047457,-151.0,0.00012765,2]
[346897114,1735347047467,-151.0,0.00012765,2]
[346897115,1735347047477,-204.884805,0.00012765,2]
[346897116,1735347047487,-204.884805,0.00012765,2]
[346897117,1735347047497,-151.0,0.00012765,2]
[346897118,1735347047508,-346.970112,0.00012765,2]
[346897119,1735347047518,-346.970112,0.00012765,2]
[346897120,1735347047527,-151.0,0.00012765,2]
[346897121,1735347047537,-4648.84767,0.00012765,2]
[346897122,1735347047547,-4648.84767,0.00012765,2]
[346897123,1735347047558,-9534.03134314,0.00012766,2]
[346897124,1735347047568,-1388.84793337,0.00012766,3]
[346897125,1735347047579,-1388.84793337,0.00012766,3]
[346897126,1735347047589,-1388.84793337,0.00012766,3]
[346897127,1735347047599,-1388.84793337,0.00012766,3]
[346897128,1735347047609,-1388.84793337,0.00012766,3]
[346897129,1735347047618,-1388.84793337,0.00012766,3]
[346897130,1735347047629,-204.884805,0.00012766,2]
[346897131,1735347047641,-204.884805,0.00012766,2]
[346897132,1735347047651,-346.970112,0.00012766,2]
[346897133,1735347047662,-346.970112,0.00012766,2]
[346897134,1735347047672,-151.0,0.00012766,2]
[346897135,1735347047681,-4648.84767,0.00012766,2]
[346897136,1735347047691,-4648.84767,0.00012766,2]
[346897137,1735347047701,-1387810.48997438,0.00012767,2]
[346897138,1735347047711,-451042.80531046,0.00012767,2]
[346897139,1735347047950,-671.78083985,0.00012767,2]
[346897140,1735347047970,-159332.90002512,0.00012767,2]
[346897141,1735347048405,-727.65,0.00011999,2]
[346897142,1735347048414,-5187.26,0.00012003,2]
[346897143,1735347048424,-606.65,0.00012004,2]
[346897144,1735347048433,-727.65,0.00012273,2]
[346897145,1735347048443,-5187.26,0.00012277,2]
[346897146,1735347048452,-606.65,0.00012278,2]
[346897147,1735347048462,-727.65,0.00012547,2]
[346897148,1735347048472,-5187.26,0.00012551,2]
[346897149,1735347048481,-606.65,0.00012552,2]
[346897150,1735347048491,-151.0,0.00012567,2]
[346897151,1735347048501,-151.0,0.0001274,2]
[346897152,1735347048510,-30264.02468253,0.00012767,2]
[346897153,1735347048522,-22962.09038652,0.00012767,2]
[346897154,1735347048539,-809.7831871,0.00012767,2]
[346897155,1735347049001,-8083.48160651,0.000126,2]
[346897156,1735347049011,-2770.51839348,0.00012767,2]
[346897157,1735347049023,-7228.76,0.00012767,2]
[346897158,1735347049034,-250596.36452485,0.00012767,2]
[346897159,1735347049051,-1126.83831642,0.00012767,2]
[346897160,1735347049062,-1116.78320645,0.00012767,2]
[346897162,1735347304255,25.57,9.101e-05,2]
[346897163,1735347304280,300.0,9.101e-05,2]
[346897164,1735347304311,262.87,9.101e-05,2]
[346897538,1735348215143,3000.0,0.00021,120]
[346897541,1735348232226,-354.8,0.00010137,2]
[346897542,1735348232236,-175.09624565,0.00010564,2]
[346897543,1735348232248,-563.23994461,0.00010564,2]
[346897544,1735348232260,-3194.56380974,0.00010564,2]
[346897545,1735348232270,-377.6,0.00010576,2]
[346897546,1735348232280,-374.54,0.00010576,2]
[346897547,1735348232290,-368.79,0.00010576,2]
[346897548,1735348232299,-381.45,0.00010576,2]
[346897549,1735348232309,-374.14,0.00010576,2]
[346897550,1735348232318,-375.79,0.00010576,2]
[346897551,1735348232327,-381.5,0.00010576,2]
[346897552,1735348232338,-374.16,0.00010576,2]
[346897553,1735348232347,-376.97,0.00010576,2]
[346897554,1735348232356,-374.09,0.00010576,2]
[346897555,1735348232366,-381.91,0.00010576,2]
[346897556,1735348232375,-380.21,0.00010576,2]
[346897557,1735348232384,-369.84,0.00010576,2]
[346897558,1735348232395,-369.96,0.00010576,2]
[346897559,1735348232404,-380.04,0.00010576,2]
[346897560,1735348232414,-368.75,0.00010576,2]
[346897561,1735348232425,-374.31,0.00010577,2]
[346897562,1735348232436,-378.36,0.00010577,2]
[346897563,1735348232447,-369.68,0.00010577,2]
[346897564,1735348232456,-380.14,0.00010577,2]
[346897565,1735348232466,-370.0,0.00010577,2]
[346897566,1735348232476,-379.65,0.00010577,2]
[346897567,1735348232486,-369.16,0.00010577,2]
[346897568,1735348232496,-376.68,0.00010577,2]
[346897569,1735348232507,-376.89,0.00010577,2]
[346897570,1735348232516,-379.13,0.00010577,2]
[346897571,1735348232527,-367.97,0.00010577,2]
[346897572,1735348232536,-379.93,0.00010578,2]
[346897573,1735348232545,-500.0,0.00010578,2]
[346897574,1735348232555,-600.0,0.00010578,2]
[346897575,1735348232564,-500.0,0.00010578,2]
[346897576,1735348232573,-369.73,0.00010578,2]
[346897577,1735348232582,-371.92,0.00010578,2]
[346897578,1735348232594,-368.62,0.00010578,2]
[346897579,1735348232603,-378.5,0.00010578,2]
[346897580,1735348232613,-381.35,0.00010578,2]
[346897581,1735348232622,-372.28,0.00010578,2]
[346897582,1735348232631,-375.8,0.00010578,2]
[346897583,1735348232640,-375.04,0.00010578,2]
[346897584,1735348232649,-369.39,0.00010578,2]
[346897585,1735348232658,-379.78,0.00010578,2]
[346897586,1735348232667,-374.34,0.00010578,2]
[346897587,1735348232677,-374.65,0.00010578,2]
[346897588,1735348232685,-372.8,0.00010578,2]
[346897589,1735348232695,-110.89335936,0.00010578,2]
[346897590,1735348232707,-266.79664064,0.00010578,2]
[346897591,1735348232716,-209.72,0.00010681,2]
[346897592,1735348232724,-15.6718283,0.00010688,2]
[346897593,1735348232736,-228.3581717,0.00010688,2]
[346897594,1735348232745,-1000.0,0.0001071,2]
[346897595,1735348232754,-339.0,0.000108,2]
[346897596,1735348232763,-250.0,0.00010915,2]
[346897597,1735348232772,-167.99,0.00010918,2]
[346897598,1735348232782,-339.0,0.0001105,2]
[346897599,1735348232791,-174.24,0.00011126,2]
[346897600,1735348232800,-174.24,0.00011144,2]
[346897602,1735348232808,-174.24,0.00011163,2]
[346897604,1735348232817,-174.24,0.00011182,2]
[346897606,1735348232826,-20568.55,0.00011281,2]
[346897608,1735348232835,-151.0,0.00011288,2]
[346897609,1735348232844,-339.0,0.0001129,2]
[346897611,1735348232853,-588.44,0.00011365,2]
[346897613,1735348232862,-1771.14,0.00011507,2]
[346897616,1735348232871,-339.0,0.0001154,2]
[346897617,1735348232881,-3189.509,0.00011601,2]
[346897619,1735348232890,-150.0,0.00011601,2]
[346897621,1735348232899,-636.7,0.00011729,2]
[346897623,1735348232908,-500.0,0.00011729,2]
[346897625,1735348232917,-500.0,0.00011729,2]
[346897627,1735348232930,-601.39,0.00011729,2]
[346897628,1735348232939,-2483.03,0.00011729,2]
[346897629,1735348232948,-500.0,0.00011729,2]
[346897630,1735348232957,-500.0,0.00011729,2]
[346897631,1735348232968,-500.0,0.00011729,2]
[346897632,1735348232977,-549.1,0.00011729,2]
[346897633,1735348232987,-367.9,0.00011729,2]
[346897634,1735348232996,-339.0,0.0001179,2]
[346897635,1735348233006,-1000.0,0.00011898,2]
[346897636,1735348233016,-500.0,0.00011898,2]
[346897637,1735348233025,-624.06,0.00011898,2]
[346897638,1735348233037,-500.0,0.00011898,2]
[346897639,1735348233047,-600.0,0.00011948,2]
[346897640,1735348233056,-317.16,0.00012,2]
[346897641,1735348233065,-636.7,0.00012003,2]
[346897642,1735348233075,-500.0,0.00012003,2]
[346897643,1735348233086,-500.0,0.00012003,2]
[346897644,1735348233095,-601.39,0.00012003,2]
[346897645,1735348233106,-2483.03,0.00012003,2]
[346897646,1735348233116,-500.0,0.00012003,2]
[346897647,1735348233125,-500.0,0.00012003,2]
[346897648,1735348233135,-500.0,0.00012003,2]
[346897649,1735348233145,-549.1,0.00012003,2]
[346897650,1735348233154,-209.72,0.00012016,2]
[346897651,1735348233164,-339.0,0.0001204,2]
[346897652,1735348233173,-1000.0,0.00012048,2]
[346897653,1735348233183,-771.1,0.00012055,2]
[346897654,1735348233193,-874.31,0.00012055,2]
[346897655,1735348233202,-771.1,0.00012055,2]
[346897656,1735348233212,-770.62,0.00012055,2]
[346897657,1735348233222,-484.482,0.0001213,2]
[346897658,1735348233231,-500.0,0.00012172,2]
[346897659,1735348233240,-624.06,0.00012172,2]
[346897660,1735348233250,-500.0,0.00012172,2]
[346897661,1735348233259,-978.01,0.00012192,2]
[346897662,1735348233268,-150.0,0.00012192,2]
[346897663,1735348233278,-978.01,0.00012192,2]
[346897664,1735348233287,-150.0,0.00012192,2]
[346897665,1735348233297,-978.01,0.00012192,2]
[346897666,1735348233306,-150.0,0.00012192,2]
[346897667,1735348233315,-971.09,0.00012192,2]
[346897668,1735348233325,-1025.0,0.00012263,2]
[346897669,1735348233334,-500.0,0.00012274,2]
[346897670,1735348233344,-219.29882525,0.00012274,2]
[346897671,1735348233353,-500.0,0.00012274,2]
[346897672,1735348233363,-500.0,0.00012274,2]
[346897673,1735348233372,-500.0,0.00012274,2]
[346897674,1735348233383,-500.0,0.00012274,2]
[346897675,1735348233392,-500.0,0.00012274,2]
[346897676,1735348233402,-2210.72,0.00012275,2]
[346897677,1735348233412,-636.7,0.00012277,2]
[346897678,1735348233421,-500.0,0.00012277,2]
[346897679,1735348233431,-500.0,0.00012277,2]
[346897680,1735348233440,-601.39,0.00012277,2]
[346897681,1735348233449,-2483.03,0.00012277,2]
[346897682,1735348233458,-500.0,0.00012277,2]
[346897683,1735348233468,-500.0,0.00012277,2]
[346897684,1735348233477,-500.0,0.00012277,2]
[346897685,1735348233487,-549.1,0.00012277,2]
[346897686,1735348233496,-2460.544,0.00012278,2]
[346897687,1735348233505,-182.797,0.00012278,2]
[346897688,1735348233515,-339.0,0.0001229,2]
[346897689,1735348233524,-500.0,0.00012301,2]
[346897690,1735348233533,-500.0,0.00012301,2]
[346897691,1735348233542,-500.0,0.00012301,2]
[346897692,1735348233551,-663.0,0.00012301,2]
[346897693,1735348233560,-500.0,0.00012301,2]
[346897694,1735348233570,-902.1,0.00012301,2]
[346897695,1735348233579,-500.0,0.00012301,2]
[346897696,1735348233588,-1242.09,0.00012301,2]
[346897697,1735348233597,-500.0,0.00012301,2]
[346897698,1735348233607,-640.85,0.00012301,2]
[346897699,1735348233616,-500.0,0.00012301,2]
[346897700,1735348233625,-500.0,0.00012301,2]
[346897701,1735348233634,-507.12,0.00012301,2]
[346897702,1735348233643,-968.74,0.00012301,2]
[346897703,1735348233652,-500.0,0.00012301,2]
[346897704,1735348233662,-546.67,0.00012301,2]
[346897705,1735348233670,-500.0,0.00012301,2]
[346897706,1735348233680,-500.0,0.00012301,2]
[346897707,1735348233689,-500.0,0.00012301,2]
[346897708,1735348233698,-500.0,0.00012301,2]
[346897709,1735348233707,-558.56,0.00012301,2]
[346897710,1735348233717,-716.87,0.00012301,2]
[346897711,1735348233726,-1059.18,0.00012301,2]
[346897712,1735348233735,-832.25,0.00012301,2]
[346897713,1735348233745,-4538.86,0.00012301,2]
[346897714,1735348233754,-578.9549,0.00012332,2]
[346897715,1735348233764,-429.20526385,0.00012376,2]
[346897716,1735348233773,-500.0,0.00012398,2]
[346897717,1735348233782,-500.0,0.00012398,2]
[346897718,1735348233791,-500.0,0.00012398,2]
[346897719,1735348233801,-723.04,0.00012398,2]
[346897720,1735348233811,-500.0,0.00012398,2]
[346897721,1735348233820,-666.79,0.00012398,2]
[346897722,1735348233830,-500.0,0.00012398,2]
[346897723,1735348233839,-500.0,0.00012398,2]